fUSD/lending_fUSD_20250109
["ID","MTS","AMOUNT","RATE_DAILY","PERIOD"]
[348310708,1736441448141,-1181.4,0.00010069,2]
[348310709,1736441448151,-500.0,0.00010069,2]
[348310710,1736441448161,-500.0,0.00010069,2]
[348310711,1736441448170,-312.52038775,0.00010069,2]
[348310712,1736441448180,-11841.77,0.00010069,2]
[348310713,1736441448190,-500.0,0.00010069,2]
[348310714,1736441448200,-500.0,0.00010069,2]
[348310715,1736441448209,-1137.25,0.00010069,2]
[348310716,1736441448218,-500.0,0.00010069,2]
[348310717,1736441448228,-500.0,0.00010069,2]
[348310718,1736441448238,-500.0,0.00010069,2]
[348310719,1736441448248,-923.92,0.00010069,2]
[348310720,1736441448258,-1450.49,0.00010069,2]
[348310721,1736441448268,-500.0,0.00010069,2]
[348310722,1736441448278,-500.0,0.00010069,2]
[348310723,1736441448288,-500.0,0.00010069,2]
[348310724,1736441448298,-500.0,0.00010069,2]
[348310725,1736441448308,-500.0,0.00010069,2]
[348310726,1736441448317,-500.0,0.00010069,2]
[348310727,1736441448330,-500.0,0.00010069,2]
[348310728,1736441448347,-2921.67,0.00010069,2]
[348310729,1736441448357,-500.0,0.00010069,2]
[348310730,1736441448367,-500.0,0.00010069,2]
[348310731,1736441448377,-500.0,0.00010069,2]
[348310732,1736441448386,-2065.25,0.00010069,2]
[348310733,1736441448396,-500.0,0.00010069,2]
[348310734,1736441448405,-556.2,0.00010069,2]
[348310735,1736441448414,-3527.14,0.00010069,2]
[348310736,1736441448424,-500.0,0.00010069,2]
[348310737,1736441448433,-500.0,0.00010069,2]
[348310738,1736441448445,-582.4,0.00010069,2]
[348310739,1736441448456,-553.55,0.00010069,2]
[348310740,1736441448466,-759.16,0.00010069,2]
[348310741,1736441448476,-500.0,0.00010069,2]
[348310742,1736441448487,-944.55,0.00010069,2]
[348310743,1736441448496,-500.0,0.00010069,2]
[348310744,1736441448506,-500.0,0.00010069,2]
[348310745,1736441448516,-500.0,0.00010069,2]
[348310746,1736441448527,-500.0,0.00010069,2]
[348310747,1736441448537,-500.0,0.00010069,2]
[348310748,1736441448547,-591.72,0.00010069,2]
[348310749,1736441448557,-6010.0,0.00010069,2]
[348310750,1736441448567,-5318.43,0.00010069,2]
[348310751,1736441448577,-500.0,0.00010069,2]
[348310752,1736441448587,-6316.42,0.00010069,2]
[348310753,1736441448597,-622.00858151,0.00010069,2]
[348310754,1736441448607,-500.0,0.00010069,2]
[348310755,1736441448617,-7304.93,0.00010069,2]
[348310756,1736441448627,-622.88,0.00010069,2]
[348310757,1736441448638,-648.72,0.00010069,2]
[348310758,1736441448647,-1989.69,0.00010069,2]
[348310759,1736441448657,-500.0,0.00010069,2]
[348310760,1736441448667,-3913.02,0.00010069,2]
[348310761,1736441448677,-500.0,0.00010069,2]
[348310762,1736441448688,-500.0,0.00010069,2]
[348310763,1736441448698,-500.0,0.00010069,2]
[348310764,1736441448708,-500.0,0.00010069,2]
[348310765,1736441448718,-1014.4,0.00010069,2]
[348310766,1736441448728,-1246.61,0.00010069,2]
[348310767,1736441448739,-500.0,0.00010069,2]
[348310768,1736441448748,-500.0,0.00010069,2]
[348310769,1736441448758,-500.0,0.00010069,2]
[348310770,1736441448768,-809.03,0.00010069,2]
[348310771,1736441448778,-4345.25,0.00010069,2]
[348310772,1736441448787,-2632.46,0.00010069,2]
[348310773,1736441448797,-500.0,0.00010069,2]
[348310774,1736441448807,-1004.32,0.00010069,2]
[348310775,1736441448817,-500.0,0.00010069,2]
[348310776,1736441448827,-500.0,0.00010069,2]
[348310777,1736441448837,-500.0,0.00010069,2]
[348310778,1736441448846,-500.0,0.00010069,2]
[348310779,1736441448856,-500.0,0.00010069,2]
[348310780,1736441448866,-6036.54,0.00010069,2]
[348310781,1736441448876,-1255.86,0.00010069,2]
[348310782,1736441448886,-2559.11,0.00010069,2]
[348310783,1736441448896,-500.0,0.00010069,2]
[348310784,1736441448905,-4108.47,0.00010069,2]
[348310785,1736441448915,-500.0,0.00010069,2]
[348310786,1736441448925,-645.14,0.00010069,2]
[348310787,1736441448935,-1341.07,0.00010069,2]
[348310788,1736441448945,-534.83,0.00010069,2]
[348310789,1736441448954,-638.93,0.00010069,2]
[348310790,1736441448963,-500.0,0.00010069,2]
[348310791,1736441448973,-500.0,0.00010069,2]
[348310792,1736441448983,-500.0,0.00010069,2]
[348310793,1736441448993,-852.72,0.00010069,2]
[348310794,1736441449003,-500.0,0.00010069,2]
[348310795,1736441449013,-500.0,0.00010069,2]
[348310796,1736441449023,-500.0,0.00010069,2]
[348310797,1736441449033,-526.64,0.00010069,2]
[348310798,1736441449043,-1606.95,0.00010069,2]
[348310799,1736441449054,-541.32,0.00010069,2]
[348310800,1736441449064,-500.0,0.00010069,2]
[348310801,1736441449074,-500.0,0.00010069,2]
[348310802,1736441449084,-500.0,0.00010069,2]
[348310803,1736441449094,-1457.55,0.00010069,2]
[348310804,1736441449104,-1241.59,0.00010069,2]
[348310805,1736441449114,-500.0,0.00010069,2]
[348310806,1736441449124,-659.1,0.00010069,2]
[348310807,1736441449134,-500.0,0.00010069,2]
[348310808,1736441449143,-500.0,0.00010069,2]
[348310809,1736441449153,-500.0,0.00010069,2]
[348310810,1736441449164,-501.29210392,0.00010069,2]
[348310811,1736441449174,-934.94,0.00010069,2]
[348310812,1736441449183,-500.0,0.00010069,2]
[348310813,1736441449193,-1914.78,0.0001007,2]
[348310814,1736441449203,-500.0,0.0001007,2]
[348310815,1736441449213,-500.0,0.0001007,2]
[348310816,1736441449223,-500.0,0.0001007,2]
[348310817,1736441449234,-554.51,0.0001007,2]
[348310818,1736441449243,-500.0,0.0001007,2]
[348310819,1736441449253,-500.0,0.0001007,2]
[348310820,1736441449262,-1402.25,0.0001007,2]
[348310821,1736441449272,-500.0,0.0001007,2]
[348310822,1736441449283,-3539.4,0.0001007,2]
[348310823,1736441449292,-500.0,0.0001007,2]
[348310824,1736441449302,-500.0,0.0001007,2]
[348310825,1736441449313,-500.0,0.0001007,2]
[348310826,1736441449323,-500.0,0.0001007,2]
[348310827,1736441449333,-500.0,0.0001007,2]
[348310828,1736441449343,-923.57,0.0001007,2]
[348310829,1736441449353,-500.0,0.0001007,2]
[348310830,1736441449362,-500.0,0.0001007,2]
[348310831,1736441449372,-500.0,0.0001007,2]
[348310832,1736441449382,-500.0,0.0001007,2]
[348310833,1736441449392,-268.18405524,0.0001007,2]
[348310834,1736441449401,-500.0,0.0001007,2]
[348310835,1736441449410,-500.0,0.0001007,2]
[348310836,1736441449419,-500.0,0.0001007,2]
[348310837,1736441449428,-500.0,0.0001007,2]
[348310838,1736441449439,-500.0,0.0001007,2]
[348310839,1736441449449,-500.0,0.0001007,2]
[348310840,1736441449460,-500.0,0.0001007,2]
[348310841,1736441449470,-500.0,0.0001007,2]
[348310842,1736441449479,-500.0,0.0001007,2]
[348310843,1736441449489,-500.0,0.0001007,2]
[348310844,1736441449499,-500.0,0.0001007,2]
[348310845,1736441449508,-210.13990582,0.0001007,2]
[348310846,1736441449518,-500.0,0.0001007,2]
[348310847,1736441449530,-500.0,0.0001007,2]
[348310848,1736441449540,-500.0,0.0001007,2]
[348310849,1736441449549,-500.0,0.0001007,2]
[348310850,1736441449560,-500.0,0.0001007,2]
[348310851,1736441449569,-500.0,0.0001007,2]
[348310852,1736441449579,-500.0,0.0001007,2]
[348310853,1736441449588,-500.0,0.0001007,2]
[348310854,1736441449597,-500.0,0.0001007,2]
[348310855,1736441449607,-1736.76,0.0001007,2]
[348310856,1736441449616,-500.0,0.0001007,2]
[348310857,1736441449626,-500.0,0.0001007,2]
[348310858,1736441449635,-500.0,0.0001007,2]
[348310859,1736441449644,-1509.14,0.0001007,2]
[348310860,1736441449653,-500.0,0.0001007,2]
[348310861,1736441449662,-663.82,0.0001007,2]
[348310862,1736441449671,-500.0,0.0001007,2]
[348310863,1736441449680,-500.0,0.0001007,2]
[348310864,1736441449690,-2089.51,0.0001007,2]
[348310865,1736441449699,-500.0,0.0001007,2]
[348310866,1736441449708,-500.0,0.0001007,2]
[348310867,1736441449718,-500.0,0.0001007,2]
[348310868,1736441449727,-500.0,0.0001007,2]
[348310869,1736441449736,-500.0,0.0001007,2]
[348310870,1736441449746,-562.89,0.0001007,2]
[348310871,1736441449755,-500.0,0.0001007,2]
[348310872,1736441449764,-500.0,0.0001007,2]
[348310873,1736441449774,-4625.91,0.0001007,2]
[348310874,1736441449783,-500.0,0.0001007,2]
[348310875,1736441449792,-567.47,0.0001007,2]
[348310876,1736441449802,-500.0,0.0001007,2]
[348310877,1736441449812,-500.0,0.0001007,2]
[348310878,1736441449821,-500.0,0.0001007,2]
[348310879,1736441449831,-500.0,0.0001007,2]
[348310880,1736441449840,-500.0,0.0001007,2]
[348310881,1736441449849,-500.0,0.0001007,2]
[348310882,1736441449859,-1958.59,0.0001007,2]
[348310883,1736441449868,-500.0,0.0001007,2]
[348310884,1736441449878,-500.0,0.0001007,2]
[348310885,1736441449887,-543.15,0.0001007,2]
[348310886,1736441449896,-500.0,0.0001007,2]
[348310887,1736441449905,-500.0,0.0001007,2]
[348310888,1736441449915,-539.69429228,0.0001007,2]
[348310889,1736441449925,-500.0,0.0001007,2]
[348310890,1736441449935,-500.0,0.0001007,2]
[348310891,1736441449943,-500.0,0.0001007,2]
[348310892,1736441449953,-500.0,0.0001007,2]
[348310893,1736441449962,-1303.99,0.0001007,2]
[348310894,1736441449972,-238.60395125,0.0001007,2]
[348310895,1736441449981,-500.0,0.0001007,2]
[348310896,1736441449990,-500.0,0.0001007,2]
[348310897,1736441450000,-500.0,0.0001007,2]
[348310898,1736441450009,-1603.31,0.0001007,2]
[348310899,1736441450018,-941.674393,0.0001007,2]
[348310900,1736441450027,-500.0,0.0001007,2]
[348310901,1736441450036,-784.78,0.0001007,2]
[348310902,1736441450046,-500.0,0.0001007,2]
[348310903,1736441450056,-500.0,0.0001007,2]
[348310904,1736441450066,-609.64,0.0001007,2]
[348310905,1736441450075,-500.0,0.0001007,2]
[348310906,1736441450084,-999.21,0.0001007,2]
[348310907,1736441450094,-630.3,0.0001007,2]
[348310908,1736441450103,-870.268303,0.0001007,2]
[348310909,1736441450112,-691.27,0.0001007,2]
[348310910,1736441450122,-500.0,0.0001007,2]
[348310911,1736441450131,-500.0,0.0001007,2]
[348310912,1736441450140,-1297.89,0.0001007,2]
[348310913,1736441450150,-3889.56,0.0001007,2]
[348310914,1736441450159,-500.0,0.0001007,2]
[348310915,1736441450168,-500.0,0.0001007,2]
[348310916,1736441450177,-500.0,0.0001007,2]
[348310917,1736441450186,-787.09,0.0001007,2]
[348310918,1736441450195,-500.0,0.0001007,2]
[348310919,1736441450205,-725.62,0.0001007,2]
[348310920,1736441450214,-500.0,0.0001007,2]
[348310921,1736441450224,-2344.21,0.0001007,2]
[348310922,1736441450233,-500.0,0.0001007,2]
[348310923,1736441450242,-500.0,0.0001007,2]
[348310924,1736441450251,-500.0,0.0001007,2]
[348310925,1736441450260,-165.13067961,0.0001007,2]
[348310926,1736441450270,-660.24,0.0001007,2]
[348310927,1736441450280,-500.0,0.0001007,2]
[348310928,1736441450289,-500.0,0.0001007,2]
[348310929,1736441450298,-500.0,0.0001007,2]
[348310930,1736441450308,-1062.57,0.0001007,2]
[348310931,1736441450317,-901.9,0.0001007,2]
[348310932,1736441450327,-500.0,0.0001007,2]
[348310933,1736441450336,-500.0,0.0001007,2]
[348310934,1736441450345,-695.31,0.0001007,2]
[348310935,1736441450355,-500.0,0.0001007,2]
[348310936,1736441450364,-500.0,0.0001007,2]
[348310937,1736441450374,-500.0,0.0001007,2]
[348310938,1736441450384,-500.0,0.0001007,2]
[348310939,1736441450393,-500.0,0.0001007,2]
[348310940,1736441450402,-500.0,0.0001007,2]
[348310941,1736441450412,-500.0,0.0001007,2]
[348310942,1736441450421,-500.0,0.0001007,2]
[348310943,1736441450431,-500.0,0.0001007,2]
[348310944,1736441450440,-500.0,0.0001007,2]
[348310945,1736441450454,-500.0,0.0001007,2]
[348310946,1736441450463,-532.84,0.0001007,2]
[348310947,1736441450473,-557.66,0.0001007,2]
[348310948,1736441450482,-500.0,0.0001007,2]
[348310949,1736441450493,-500.0,0.0001007,2]
[348310950,1736441450502,-500.0,0.0001007,2]
[348310951,1736441450511,-500.0,0.0001007,2]
[348310952,1736441450521,-500.0,0.0001007,2]
[348310953,1736441450533,-500.0,0.0001007,2]
[348310954,1736441450543,-590.63,0.0001007,2]
[348310955,1736441450552,-676.47,0.0001007,2]
[348310956,1736441450563,-500.0,0.0001007,2]
[348310957,1736441450572,-5512.17,0.0001007,2]
[348310958,1736441450582,-500.0,0.0001007,2]
[348310959,1736441450591,-1014.36,0.0001007,2]
[348310960,1736441450601,-500.0,0.0001007,2]
[348310961,1736441450611,-500.0,0.0001007,2]
[348310962,1736441450620,-500.0,0.0001007,2]
[348310963,1736441450630,-540.3,0.0001007,2]
[348310964,1736441450639,-500.0,0.0001007,2]
[348310965,1736441450649,-500.0,0.0001007,2]
[348310966,1736441450658,-500.0,0.0001007,2]
[348310967,1736441450667,-4726.09,0.0001007,2]
[348310968,1736441450677,-500.0,0.0001007,2]
[348310969,1736441450686,-500.0,0.0001007,2]
[348310970,1736441450696,-501.08,0.0001007,2]
[348310971,1736441450706,-500.0,0.0001007,2]
[348310972,1736441450716,-500.0,0.0001007,2]
[348310973,1736441450726,-1135.75,0.0001007,2]
[348310974,1736441450736,-1007.34,0.0001007,2]
[348310975,1736441450745,-569.44,0.0001007,2]
[348310976,1736441450756,-500.0,0.0001007,2]
[348310977,1736441450766,-588.54,0.0001007,2]
[348310978,1736441450776,-500.0,0.0001007,2]
[348310979,1736441450997,-500.0,0.0001007,2]
[348310980,1736441451007,-500.0,0.0001007,2]
[348310981,1736441451019,-884.79,0.0001007,2]
[348310982,1736441451030,-584.57,0.0001007,2]
[348310983,1736441451041,-500.0,0.0001007,2]
[348310984,1736441451052,-547.98,0.0001007,2]
[348310985,1736441451062,-500.0,0.0001007,2]
[348310986,1736441451072,-724.67,0.0001007,2]
[348310987,1736441451081,-2877.28,0.0001007,2]
[348310988,1736441451091,-1487.4,0.0001007,2]
[348310989,1736441451100,-500.0,0.0001007,2]
[348310990,1736441451110,-637.1,0.0001007,2]
[348310991,1736441451119,-639.61,0.0001007,2]
[348310992,1736441451128,-539.81,0.0001007,2]
[348310993,1736441451138,-500.0,0.0001007,2]
[348310994,1736441451147,-500.0,0.0001007,2]
[348310995,1736441451156,-500.0,0.0001007,2]
[348310996,1736441451166,-603.8,0.0001007,2]
[348310997,1736441451175,-500.0,0.0001007,2]
[348310998,1736441451185,-434.00358049,0.0001007,2]
[348310999,1736441451194,-500.0,0.0001007,2]
[348311000,1736441451204,-500.0,0.0001007,2]
[348311001,1736441451213,-507.27,0.0001007,2]
[348311002,1736441451223,-5704.59,0.0001007,2]
[348311003,1736441451232,-1361.48,0.0001007,2]
[348311004,1736441451241,-500.0,0.0001007,2]
[348311005,1736441451251,-500.0,0.0001007,2]
[348311006,1736441451261,-500.25,0.0001007,2]
[348311007,1736441451270,-500.0,0.0001007,2]
[348311008,1736441451279,-579.83,0.0001007,2]
[348311009,1736441451289,-875.06,0.0001007,2]
[348311010,1736441451298,-500.0,0.0001007,2]
[348311011,1736441451309,-730.94,0.0001007,2]
[348311012,1736441451320,-500.0,0.0001007,2]
[348311013,1736441451330,-500.0,0.0001007,2]
[348311014,1736441451340,-500.0,0.0001007,2]
[348311015,1736441451349,-500.0,0.0001007,2]
[348311016,1736441451358,-500.0,0.0001007,2]
[348311017,1736441451368,-500.0,0.0001007,2]
[348311018,1736441451377,-500.0,0.0001007,2]
[348311019,1736441451386,-500.0,0.0001007,2]
[348311020,1736441451396,-773.49,0.0001007,2]
[348311021,1736441451405,-500.0,0.0001007,2]
[348311022,1736441451414,-500.0,0.0001007,2]
[348311023,1736441451423,-500.0,0.0001007,2]
[348311024,1736441451433,-975.6,0.0001007,2]
[348311025,1736441451445,-500.0,0.0001007,2]
[348311026,1736441451459,-998.39,0.0001007,2]
[348311027,1736441451468,-500.0,0.0001007,2]
[348311028,1736441451478,-701.43,0.0001007,2]
[348311029,1736441451487,-500.0,0.0001007,2]
[348311030,1736441451498,-500.0,0.0001007,2]
[348311031,1736441451507,-500.0,0.0001007,2]
[348311032,1736441451517,-500.0,0.0001007,2]
[348311033,1736441451527,-500.0,0.0001007,2]
[348311034,1736441451538,-500.0,0.0001007,2]
[348311035,1736441451548,-500.0,0.0001007,2]
[348311036,1736441451559,-500.0,0.0001007,2]
[348311037,1736441451569,-500.0,0.0001007,2]
[348311038,1736441451579,-1565.83,0.0001007,2]
[348311039,1736441451589,-500.0,0.0001007,2]
[348311040,1736441451599,-500.0,0.0001007,2]
[348311041,1736441451608,-500.0,0.0001007,2]
[348311042,1736441451618,-500.0,0.0001007,2]
[348311043,1736441451627,-500.0,0.0001007,2]
[348311044,1736441451637,-500.0,0.0001007,2]
[348311045,1736441451646,-500.0,0.0001007,2]
[348311046,1736441451656,-656.29,0.0001007,2]
[348311047,1736441451665,-1916.01,0.0001007,2]
[348311048,1736441451675,-594.19,0.0001007,2]
[348311049,1736441451684,-500.0,0.0001007,2]
[348311050,1736441451694,-500.0,0.0001007,2]
[348311051,1736441451704,-500.0,0.0001007,2]
[348311052,1736441451714,-500.0,0.0001007,2]
[348311053,1736441451724,-500.0,0.0001007,2]
[348311054,1736441451734,-1153.48,0.0001007,2]
[348311055,1736441451744,-500.0,0.0001007,2]
[348311056,1736441451754,-2227.16,0.0001007,2]
[348311057,1736441451764,-500.0,0.0001007,2]
[348311058,1736441451773,-1176.86,0.0001007,2]
[348311059,1736441451783,-500.0,0.0001007,2]
[348311060,1736441451793,-500.0,0.0001007,2]
[348311061,1736441451803,-500.0,0.0001007,2]
[348311062,1736441451812,-500.0,0.0001007,2]
[348311063,1736441451822,-500.0,0.0001007,2]
[348311064,1736441451832,-500.0,0.0001007,2]
[348311065,1736441451841,-500.0,0.0001007,2]
[348311066,1736441451850,-500.0,0.0001007,2]
[348311067,1736441451860,-1519.67,0.0001007,2]
[348311068,1736441451870,-500.0,0.0001007,2]
[348311069,1736441451879,-2093.33,0.0001007,2]
[348311070,1736441451889,-500.0,0.0001007,2]
[348311071,1736441451899,-741.11,0.0001007,2]
[348311072,1736441451910,-500.0,0.0001007,2]
[348311073,1736441451919,-533.46898388,0.0001007,2]
[348311074,1736441451929,-500.0,0.0001007,2]
[348311075,1736441451939,-500.0,0.0001007,2]
[348311076,1736441451948,-500.0,0.0001007,2]
[348311077,1736441451958,-2694.41,0.0001007,2]
[348311078,1736441451967,-3351.45,0.0001007,2]
[348311079,1736441451977,-581.07,0.0001007,2]
[348311080,1736441451986,-500.0,0.00010071,2]
[348311081,1736441451995,-500.0,0.00010071,2]
[348311082,1736441452005,-500.0,0.00010071,2]
[348311083,1736441452015,-500.0,0.00010071,2]
[348311084,1736441452025,-500.0,0.00010071,2]
[348311085,1736441452035,-500.0,0.00010071,2]
[348311086,1736441452044,-500.0,0.00010071,2]
[348311087,1736441452054,-500.0,0.00010071,2]
[348311088,1736441452065,-500.0,0.00010071,2]
[348311089,1736441452074,-500.0,0.00010071,2]
[348311090,1736441452083,-500.0,0.00010071,2]
[348311091,1736441452093,-500.0,0.00010071,2]
[348311092,1736441452102,-500.0,0.00010071,2]
[348311093,1736441452112,-500.0,0.00010071,2]
[348311094,1736441452121,-500.0,0.00010071,2]
[348311095,1736441452131,-500.0,0.00010071,2]
[348311096,1736441452140,-500.0,0.00010071,2]
[348311097,1736441452149,-500.0,0.00010071,2]
[348311098,1736441452158,-500.0,0.00010071,2]
[348311099,1736441452169,-500.0,0.00010071,2]
[348311100,1736441452179,-529.99,0.00010071,2]
[348311101,1736441452188,-500.0,0.00010071,2]
[348311102,1736441452198,-500.0,0.00010071,2]
[348311103,1736441452207,-500.0,0.00010071,2]
[348311104,1736441452216,-500.0,0.00010071,2]
[348311105,1736441452226,-564.43,0.00010071,2]
[348311106,1736441452235,-523.98942825,0.00010071,2]
[348311107,1736441452245,-500.0,0.00010071,2]
[348311108,1736441452255,-500.0,0.00010071,2]
[348311109,1736441452264,-569.24,0.00010071,2]
[348311110,1736441452274,-500.0,0.00010071,2]
[348311111,1736441452283,-500.0,0.00010071,2]
[348311112,1736441452293,-500.0,0.00010071,2]
[348311113,1736441452303,-500.0,0.00010071,2]
[348311114,1736441452314,-523.75,0.00010071,2]
[348311115,1736441452324,-500.0,0.00010071,2]
[348311116,1736441452334,-500.0,0.00010071,2]
[348311117,1736441452344,-1090.39,0.00010071,2]
[348311118,1736441452353,-631.3,0.00010071,2]
[348311119,1736441452363,-500.0,0.00010071,2]
[348311120,1736441452373,-563.96,0.00010071,2]
[348311121,1736441452383,-500.0,0.00010071,2]
[348311122,1736441452393,-830.28,0.00010071,2]
[348311123,1736441452402,-515.92,0.00010071,2]
[348311124,1736441452412,-500.0,0.00010071,2]
[348311125,1736441452422,-611.23,0.00010071,2]
[348311126,1736441452431,-845.42,0.00010071,2]
[348311127,1736441452441,-500.0,0.00010071,2]
[348311128,1736441452453,-1107.02,0.00010071,2]
[348311129,1736441452463,-885.0,0.00010071,2]
[348311130,1736441452472,-1251.14,0.00010071,2]
[348311131,1736441452482,-744.19,0.00010071,2]
[348311132,1736441452493,-500.0,0.00010071,2]
[348311133,1736441452503,-628.0,0.00010071,2]
[348311134,1736441452513,-500.0,0.00010071,2]
[348311135,1736441452523,-1456.64,0.00010071,2]
[348311136,1736441452533,-733.74,0.00010071,2]
[348311137,1736441452543,-1452.42,0.00010071,2]
[348311138,1736441452553,-2541.11,0.00010071,2]
[348311139,1736441452563,-500.0,0.00010071,2]
[348311140,1736441452573,-1371.36,0.00010071,2]
[348311141,1736441452583,-500.0,0.00010071,2]
[348311142,1736441452592,-2305.56,0.00010071,2]
[348311143,1736441452602,-674.85,0.00010071,2]
[348311144,1736441452612,-500.0,0.00010071,2]
[348311145,1736441452622,-737.47,0.00010071,2]
[348311146,1736441452631,-500.0,0.00010071,2]
[348311147,1736441452642,-500.0,0.00010071,2]
[348311148,1736441452651,-2187.25,0.00010071,2]
[348311149,1736441452662,-818.96,0.00010071,2]
[348311150,1736441452672,-2081.65,0.00010071,2]
[348311151,1736441452681,-500.0,0.00010071,2]
[348311152,1736441452691,-2838.32,0.00010071,2]
[348311153,1736441452700,-5040.93,0.00010071,2]
[348311154,1736441452710,-1701.34,0.00010071,2]
[348311155,1736441452720,-500.0,0.00010071,2]
[348311156,1736441452730,-811.8,0.00010071,2]
[348311157,1736441452739,-2409.29,0.00010071,2]
[348311158,1736441452750,-546.38,0.00010071,2]
[348311159,1736441452760,-2443.67,0.00010071,2]
[348311160,1736441452770,-2955.96,0.00010071,2]
[348311161,1736441452779,-807.32,0.00010071,2]
[348311162,1736441452789,-951.84,0.00010072,2]
[348311163,1736441452799,-951.84,0.00010072,2]
[348311164,1736441452810,-586.19,0.00010072,2]
[348311165,1736441452819,-1510.51,0.00010072,2]
[348311166,1736441452829,-816.63,0.00010072,2]
[348311167,1736441452839,-2440.13,0.00010072,2]
[348311168,1736441452849,-2048.03,0.00010072,2]
[348311169,1736441452858,-2748.95,0.00010072,2]
[348311170,1736441452868,-2460.69,0.00010072,2]
[348311171,1736441452877,-4998.03,0.00010072,2]
[348311172,1736441452887,-12407.55,0.00010072,2]
[348311173,1736441452896,-1891.85,0.00010072,2]
[348311174,1736441452906,-754.63,0.00010072,2]
[348311175,1736441452916,-1072.78,0.00010072,2]
[348311176,1736441452926,-3521.15,0.00010072,2]
[348311177,1736441452938,-500.0,0.00010072,2]
[348311178,1736441452947,-1086.63,0.00010072,2]
[348311179,1736441452957,-1549.11,0.00010072,2]
[348311180,1736441452967,-611.89,0.00010072,2]
[348311181,1736441452976,-1000.0,0.00010072,2]
[348311182,1736441452986,-2274.81,0.00010072,2]
[348311183,1736441452995,-1114.39,0.00010072,2]
[348311184,1736441453005,-500.0,0.00010073,2]
[348311185,1736441453015,-3151.26,0.00010073,2]
[348311186,1736441453025,-2445.76,0.00010073,2]
[348311187,1736441453035,-248.45498968,0.000101,2]
[348311188,1736441453045,-882.79282991,0.00010121,2]
[348311189,1736441453055,-500.0,0.00010136,2]
[348311190,1736441453067,-695.49,0.00010137,2]
[348311191,1736441453077,-159.96,0.00010137,2]
[348311192,1736441453086,-426.78923974,0.00010148,2]
[348311193,1736441453096,-150.0,0.00010227,2]
[348311194,1736441453106,-882.79282991,0.00010228,2]
[348311195,1736441453119,-192.90400355,0.00010244,2]
[348311196,1736441453128,-20039.13521449,0.00010244,2]
[348311197,1736441453138,-150.0,0.00010245,2]
[348311198,1736441453148,-360.24307833,0.00010253,2]
[348311199,1736441453157,-156.727,0.0001026,2]
[348311200,1736441453167,-6198.53914583,0.00010272,4]
[348311201,1736441453176,-500.0,0.00010273,2]
[348311202,1736441453186,-1500.0,0.00010314,2]
[348311203,1736441453195,-150.0,0.00010333,2]
[348311204,1736441453205,-150.0,0.00010333,2]
[348311205,1736441453214,-882.79282991,0.00010334,2]
[348311206,1736441453223,-500.0,0.00010343,2]
[348311207,1736441453233,-855.78,0.00010343,2]